Cogmind - Beta 16 @@@ ROGUE MODE // 2026.01.17 @ 12:12:10 Player: mlys Result: Destroyed by S-10 Pest with Light Assault Rifle Performance ------------- Evolutions (0) 0 Regions Visited (2) 400 Robots Destroyed (6) 30 Value Destroyed (144) 144 Prototype IDs (0) 0 Alien Tech Used (0) 0 Bonus (0) 0 TOTAL SCORE: 574 Bonus ------- None Cogmind --------- Core Integrity 0/250 Matter 300/300 Energy 109/125 System Corruption 0% Temperature Cool (0) Movement Core (200) Ox3 Location -10/Subcaves Parts ------- > --- POWER (1) -------- Light Ion Engine > --- PROPULSION (2) --- Subdweller Monowheel > --- UTILITY (2) ------ Heat Sink > --- WEAPON (2) ------- Subdweller Beam Cannon > --- INVENTORY (5) ---- Light Ion Engine Small Storage Unit Peak State ------------ > --- POWER ------------ Light Ion Engine > --- PROPULSION ------- Light Treads Light Treads > --- UTILITY ---------- Heat Sink Small Storage Unit > --- WEAPON ----------- Medium Laser Small Laser > --- INVENTORY -------- Light Ion Engine Light Ion Engine Light Assault Rifle [Rating: 7] Favorites ----------- Power Light Ion Engine Engine Light Ion Engine Propulsion Light Treads Treads Light Treads Wheel Subdweller Monowheel Utility Heat Sink Device Heat Sink Storage Huge Storage Unit Weapon Medium Laser Energy Gun Medium Laser Energy Cannon Subdweller Beam Cannon Ballistic Gun Light Assault Rifle Build | -11 -10 -10 ------- Run | Yrd Mat Sub Slots Evolved . | . . . Power . | . . . Propulsion . | . . . Utility . | . . . Weapon . | . . . Parts Attached 14 | 7 2 5 Power 3 | 1 . 2 Engine 3 | 1 . 2 Core . | . . . Reactor . | . . . Propulsion 3 | 2 . 1 Treads 2 | 2 . . Leg . | . . . Wheel 1 | . . 1 Hover . | . . . Flight . | . . . Utility 3 | 1 2 . Device 1 | . 1 . Storage 2 | 1 1 . Processor . | . . . Hackware . | . . . Protection . | . . . Artifact . | . . . Weapon 5 | 3 . 2 Energy Gun 3 | 3 . . Energy Cannon 1 | . . 1 Ballistic Gun 1 | . . 1 Ballistic Cannon . | . . . Launcher . | . . . Special Weapon . | . . . Impact Weapon . | . . . Slashing Weapon . | . . . Piercing Weapon . | . . . Special Melee Weapon . | . . . Unidentified Prototypes . | . . . Parts Lost 6 | . . 6 Power 1 | . . 1 Propulsion 2 | . . 2 Utility . | . . . Weapon 3 | . . 3 Highest Loss Streak 5 | . . 5 To Critical Strikes . | . . . Average Backups 3 | . 3 3 Power 1 | . 1 1 Propulsion . | . . . Utility . | . . 1 Weapon . | . . . Tool/Special . | . . . Unused Backups . | . . . Power . | . . . Propulsion . | . . . Utility . | . . . Weapon . | . . . Tool/Special . | . . . Average Slot Usage (%) 88 | . 93 87 Engine 13 | . 14 13 Treads 19 | . 28 17 Wheel 3 | . . 4 Device 12 | . 7 14 Storage 9 | . 14 8 Energy Gun 13 | . 28 10 Energy Cannon 4 | . . 4 Ballistic Gun 9 | . . 11 Peak Build Rating 7 | 6 7 7 Average Rating 6 | 5 6 6 On Entrance 4 | . 6 7 Avg Prop Armor Cover (%) 6 | . . 6 Naked Turns . | . . . Heaviest Build 87 | 11 87 87 Greatest Support 40 | 40 40 40 Greatest Overweight (x) 4 | 1 2 4 Average Overweight (x) 1 | . . 2 Largest Inventory Capacity 25 | 8 25 25 Average Capacity 16 | 7 15 17 Most Carried 6 | 2 4 6 Average Carried 3 | . 3 3 Final Capacity 25 | 8 25 5 Final Carried 4 | 1 4 2 Class Distribution -------------------- 72% | Mutant 27% | Scavenger-Mutant Dominant Class ---------------- Mutant | -10/Materials Mutant | -10/Subcaves Resources | -11 -10 -10 ----------- Run | Yrd Mat Sub Matter Collected 375 | 218 56 101 Remotely . | . . . Salvage Created 173 | . 56 117 Parts 15 | . 6 9 Haulers Intercepted . | . . . Recyclers Shooed . | . . . Parts Field Recycled . | . . . Retrieved Matter . | . . . Parts Self-Destructed 9 | . . 9 Prevented . | . . . Parts Restored . | . . . Kills | -11 -10 -10 ------- Run | Yrd Mat Sub Combat Hostiles Destroyed 6 | . 2 4 Guns 6 | . 2 4 Classes Destroyed 3 | . 2 1 Swarmer 3 | . 1 2 Grunt 1 | . 1 . Subdweller 2 | . . 2 Best Kill Streak 2 | . 1 2 Combat Bots Only 2 | . 1 2 Max Kills in Single Turn 1 | . 1 1 Gunslinging . | . . . Exploded . | . . . Melee . | . . . Uniques/NPCs Destroyed . | . . . Combat | -11 -10 -10 -------- Run | Yrd Mat Sub Hostile Shots Fired 101 | . 13 88 Missed 28 | . 1 27 Hits 73 | . 12 61 Projectile 73 | . 12 61 Critical Strikes 2 | . 1 1 Damage Taken 941 | . 109 832 Core 256 | . 25 231 Absorbed by Shields . | . . . Core Remaining (%) 100 | 100 . . Volleys Fired 60 | . 11 49 Largest 2 | . 2 2 Hottest 100 | . 90 100 Shots Fired 98 | . 22 76 Gun 78 | . 22 56 Cannon 20 | . . 20 Launcher . | . . . Special . | . . . Kinetic 42 | . . 42 Thermal 56 | . 22 34 Explosive . | . . . Electromagnetic . | . . . Robot Hit Streak 7 | . 5 7 Robot Miss Streak 3 | . 3 3 Penetration Max . | . . . Secondary Targets . | . . . Shots Hit Robots 33 | . 10 23 Core Hits 12 | . 3 9 Critical Kills 1 | . . 1 Critical Parts Destroyed . | . . . Critical Strikes 3 | . . 3 Burn 2 | . . 2 Destroy 1 | . . 1 Melee Attacks . | . . . Impact . | . . . Slashing . | . . . Piercing . | . . . Sneak Attacks . | . . . Combat Hostiles . | . . . Follow-up Attacks . | . . . Damage Inflicted 314 | . 115 199 Guns 314 | . 115 199 Cannons . | . . . Explosions . | . . . Melee . | . . . Ramming . | . . . Kinetic 114 | . . 114 Thermal 200 | . 115 85 Explosive . | . . . Electromagnetic . | . . . Impact . | . . . Slashing . | . . . Piercing . | . . . Highest Corruption . | . . . Average Corruption . | . . . Corruption Purged . | . . . Corruption Blocked . | . . . Overload Shots . | . . . Overflow Damage . | . . . Projectiles . | . . . Explosions . | . . . Melee . | . . . Knockbacks . | . . . Impact . | . . . Kinetic . | . . . Secondary . | . . . Self-Inflicted Damage . | . . . Shots . | . . . Rammed . | . . . Targets Rammed . | . . . Kicked . | . . . Crushed . | . . . Highest Temperature 150 | . 150 . Average Temperature 48 | . 48 . Received Heat Transfer 219 | . 30 189 Siege Activations . | . . . Martial Activations . | . . . Shielding Activations . | . . . Robots Disrupted . | . . . Combat Hostiles . | . . . Robots Corrupted . | . . . Combat Hostiles . | . . . Parts Fried . | . . . Impact Corruptions . | . . . Robots Melted . | . . . Combat Hostiles . | . . . Parts Melted 1 | . . 1 Heat Transferred 657 | . 286 371 Parts Sabotaged . | . . . Parts Stolen . | . . . Parts Stripped . | . . . Power Chain Reactions . | . . . Alert | -11 -10 -10 ------- Run | Yrd Mat Sub Maximum Alert Level . | . . . Low Security (%) 100 | 100 100 . Level 1 . | . . . Level 2 . | . . . Level 3 . | . . . Level 4 . | . . . Level 5 . | . . . High Security . | . . . Max Security . | . . . Peak Influence 30 | . 30 . Initial . | . . . Average 2 | . 3 . Influence Increases 131 | . 51 80 Destroy 0b10 Robot/C 80 | . 40 40 Destroy Leader 20 | . 10 10 Destroy Structure 1 | . 1 . Lose Combat Pursuer 30 | . . 30 Influence Decreases 111 | . 51 60 Time Decay 101 | . 51 50 Lost Part 10 | . . 10 Squads Dispatched 1 | . 1 . Investigation . | . . . Extermination . | . . . Reinforcement 1 | . 1 . Assault . | . . . Garrison . | . . . Intercept . | . . . Searches Triggered . | . . . Construction Impeded . | . . . Haulers Reinforced . | . . . Active Scanning Responses . | . . . Cargo Convoy Interrupts . | . . . Stealth | -11 -10 -10 --------- Run | Yrd Mat Sub Distress Signals 1 | . 1 . Communications Jammed . | . . . Distress Signals . | . . . Times Spotted 18 | . 9 9 Peak Tracking Total 6 | . 3 6 Tactical Retreats 1 | . . 1 Traps | -11 -10 -10 ------- Run | Yrd Mat Sub Traps Triggered . | . . . Indirectly . | . . . Trap Hack Attempts . | . . . Triggered . | . . . Disarmed . | . . . Reprogrammed . | . . . Reused . | . . . Traps Extracted . | . . . Installed . | . . . Triggered . | . . . Machines | -11 -10 -10 ---------- Run | Yrd Mat Sub Machines Disabled 1 | . . 1 Max in Single Turn 1 | . . 1 Machines Repaired . | . . . Machines Dismantled . | . . . Machines Sabotaged . | . . . Overloaded Fab Kills . | . . . Hacking | -11 -10 -10 --------- Run | Yrd Mat Sub Machines Accessed . | . . . Terminals . | . . . Fabricators . | . . . Repair Stations . | . . . Recycling Units . | . . . Scanalyzers . | . . . Garrison Access . | . . . Total Hacks . | . . . Successful . | . . . Failed . | . . . Catastrophic . | . . . Database Lockouts . | . . . Manual . | . . . Terminals . | . . . Fabricators . | . . . Repair Stations . | . . . Recycling Units . | . . . Scanalyzers . | . . . Garrison Access . | . . . Terminal Hacks . | . . . Fabricator Hacks . | . . . Repair Station Hacks . | . . . Recycling Unit Hacks . | . . . Scanalyzer . | . . . Garrison Access Hacks . | . . . Unauthorized Hacks . | . . . Terminals . | . . . Fabricators . | . . . Repair Stations . | . . . Recycling Units . | . . . Scanalyzers . | . . . Garrison Access . | . . . Data Cores Recovered . | . . . Used . | . . . Hacking Detections . | . . . Full Trace Events . | . . . Feedback Events . | . . . Feedback Blocked . | . . . Robot Schematics Acquired . | . . . Robots Built . | . . . Authchips . | . . . Time . | . . . Total Robot Build Rating . | . . . Part Schematics Acquired . | . . . Parts Built . | . . . Authchips . | . . . Time . | . . . Total Part Build Rating . | . . . Part Studies Acquired . | . . . Parts Repaired . | . . . Time . | . . . Parts Recycled . | . . . Recycled Matter . | . . . Retrieved Matter . | . . . Retrieved Components . | . . . Parts Scanalyzed . | . . . Part Schematics Acquired . | . . . Parts Damaged . | . . . Bothacking | -11 -10 -10 ------------ Run | Yrd Mat Sub Used RIF Installer . | . . . Robots Hacked . | . . . Non-combat . | . . . Combat . | . . . Robot Hacks Applied . | . . . Relay Couplers Released . | . . . Fabnet Peak Effective % . | . . . Robots Rewired . | . . . Allies Hacked . | . . . Hacks Repelled . | . . . Allies | -11 -10 -10 -------- Run | Yrd Mat Sub Total Allies . | . . . Largest Group . | . . . Highest-Rated Group . | . . . Highest-Rated Ally . | . . . Total Orders . | . . . Ally Attacks . | . . . Total Damage . | . . . Kills . | . . . Allies Corrupted . | . . . Allies Melted . | . . . Intel | -11 -10 -10 ------- Run | Yrd Mat Sub Active Infowar (turns) . | . . . Robot Analysis Total . | . . . Derelict Logs Recovered . | . . . Drone Launches . | . . . Drone Recoveries . | . . . Exploration | -11 -10 -10 ------------- Run | Yrd Mat Sub Turns Passed 2339 | 181 405 1753 Spaces Moved 907 | 123 141 643 Core 202 | 27 . 175 Treads 571 | 96 141 334 Legs . | . . . Wheels 134 | . . 134 Hover . | . . . Flight . | . . . Fastest Speed 50 | 50 160 50 Average Speed 227 | 137 194 252 Slowest Speed 320 | 160 320 320 Overloaded Moves . | . . . Propulsion Burnouts . | . . . Robots Hopped . | . . . Potential Cave-ins . | . . . Cave-ins Triggered . | . . . Exploration Rate (%) 21 | 6 26 31 Regions Visited 2 Branch Regions 1 Pre-discovered Areas . | . . . Known Exits Taken . | . . . Unknown Exits Taken 2 | 1 1 . Scrap Searched . | . . . Spaces Dug 3 | . . 3 Terrain Destroyed 4 | . . 4 Melee . | . . . Projectile 4 | . . 4 AOE . | . . . Terrain Rammed . | . . . Walls Destroyed . | . . . Machines Disabled . | . . . Actions | -11 -10 -10 --------- Run | Yrd Mat Sub Total 1091 | 132 251 708 Wait 96 | . 96 . Move 905 | 122 140 643 Hop . | . . . Pick Up 8 | 2 2 4 Fast Attach 9 | 6 1 2 Attach 3 | 1 . 2 Detach . | . . . Swap 4 | . 1 3 Drop 6 | 1 . 5 Fire 60 | . 11 49 Melee . | . . . Ram . | . . . Kick . | . . . Crush . | . . . Escape Stasis . | . . . Rewire . | . . . Trap . | . . . Miscellaneous . | . . . Route ------- -11/Scrapyard -10/Materials (discovered 2 exits: [*Mat] / [*Sub]) -10/Subcaves History --------- Turn | Location | Event 5 | -11/Scrapyard | Discovered new exit (range 16) 182 | -11/Scrapyard | Entered Materials 316 | -10/Materials | Build established: Mutant 331 | -10/Materials | Discovered new exit (range 16) 443 | -10/Materials | Discovered new exit (range 9) 587 | -10/Materials | Entered Subcaves 1666 | -10/Subcaves | Core integrity fell below 50% 1702 | -10/Subcaves | Core integrity fell below 20% 1726 | -10/Subcaves | Lost 5 parts (1p2n2w) 1996 | -10/Subcaves | Build established: Scavenger-Mutant 2340 | -10/Subcaves | Destroyed by S-10 Pest with Light Assault Rifle Last Messages --------------- Sub. Power Source melted. TA-P8N(R) destroyed. Acquired Scrap Shield Fragment. Dropped Scrap Shield Fragment. Acquired 27 matter. Acquired Sub. Beam Cannon. Subatomizers dissect the Sub. Monowheel. Acquired Sub. Monowheel. Subatomizers dissect the Disposable Heat Sink. Acquired 12 matter. Subatomizers dissect the Disposable Heat Sink. Subatomizers dissect the Huge Storage Unit. Subatomizers dissect the Disposable Heat Sink. Subatomizers dissect the Huge Storage Unit. Sub. Monowheel shoots sparks and powers down. Subatomizers dissect the Huge Storage Unit. Acquired 34 matter. Machine disabled. Lgt. Assault Rifle destroyed. Map ----- +----------------------------------------------------+ | ?????????????????????????????????????????????????? | | ?????????????????????????????????????????????????? | | ?????????????????????????????????????????????????? | | ?????????????????????????????????????????????????? | | ?????????????????????????????????????????????????? | | ?????????????????????????????????????????????????? | | ?????????????????????????????????????????????????? | | ?????????????????????????????????????????????????? | | ?????????????????????????????????????????????????? | | ?????????????????????????????????????????????????? | | ?????????????????????????????##????#?? ??????????? | | ???????????????????????????### #### ##????????? | | ??????????????????????????? ? ##??# #? | | ???????????????????????????? ### ## | | ???????????????????????????? | | ????????????????????????????? | | ?????????????????????????????? ## | | ?????????????????????????????? ## | | ??????????????????????????????? #? # | | ???????????????????????????????# ?? ## | | ???????????????????????????????# ##?? ## | | ??????????????????????????????## ???# | | ??????????????????????????????# ##### | | ????????????????## ??????####?# #???? | | ????????????????# ### #### #???? | | ?????????? @ ## #???? | | ?????????? ### ##?? | | ?????????????## ; ## ####?## # ### | | ??????????????# s#######?????# ## # | | ??????????????# ### # s ???????????# #### ## | | ??????????????????##?# s?????#####?## ##?## #? | | ?????????????????????# ?????# ##?# #### #? | | ?????????????????????#s ?????## ### ## ## | | ????????????????????? ??????## ## | | ????????????????????? ????????## #### | | ???????????????????? ?????????# #??## | | ???????????????????? t ?????????# #???## | | ??????????????????? " ????????## #????## | | ??????????????????? """ ????????# ####?????## | | ??????????????????????#?????????## #?????##### | | ?????????????????????????????????## ###??## ## | | ?????????????????????????????????## #?## | | ????????????????????????????????## ### | | ??????????????????????????#####?# | | ????????????????####????### #?# ### | | ???????????????## ##?### #?# ## | | ???????????????#""""### ### #### # | | ???????????????#""""""" " #" #??# # | | ???????????????#" ### #??# ## | | ???????????????##"#### ### #??####? | +----------------------------------------------------+ Best States ------------- Heat Dissipation 35 Energy Generation 10 Energy Capacity 125 Matter Stores 300 Matter Capacity 300 Sight Range 16 Terrain Scan Density 10 Evasion (%) 50 Recoil Reduction 2 Item Schematics ----------------- None Robot Schematics ------------------ None Fabricated ------------ Nothing Repaired ---------- Nothing Studied --------- None Alien Tech Used ----------------- None Achievements -------------- None Challenges ------------ None Game ------ Seed StructuralShadeAxe Manual? 0 Play Time 00:10:34 Cumulative 5.0 hours Start 2026.01.17 @ 12:03:53 End 2026.01.17 @ 12:12:10 Sessions 1 Manual Loads 0 Difficulty Rogue Special Mode None Game No. 13 Rogue 13 Adventurer 0 Explorer 0 Win Type - Total 0 Types 0/0/0/0/0/0/0/0/0/0 Lore% 2 Gallery% 9 Achievement% 10 Wizard Run 0 Options --------- Layout 1 ASCII 0 Keyboard 0 Movement Vi Keybinds 0 Fullscreen 1 Font 24/Proggy Map View 50x35 Zoom Use 0% Tactical HUD 0 Map Filters NONE Filters NONE Steam 1 RUN: 47ca8be4-34d7-4b1e-9603-6e88ca779701